fUST/lending_fUST_20240615
["ID","MTS","AMOUNT","RATE_DAILY","PERIOD"]
[329505371,1718405444329,-168.28371529,0.00016438,2]
[329505372,1718405444377,-190.10729815,0.00016438,2]
[329505373,1718405444390,-500.0,0.00016438,2]
[329505374,1718405444423,-390.1327015,0.00016438,2]
[329505375,1718405444452,-109.8672985,0.00016438,2]
[329505376,1718405444523,-500.0,0.00016438,2]
[329505377,1718405444557,-500.0,0.00016438,2]
[329505378,1718405444568,-500.0,0.00016438,2]
[329505379,1718405444580,-38.26772713,0.00016438,2]
[329505380,1718405444593,-461.73227287,0.00016438,2]
[329505381,1718405444605,-524.64,0.00016438,2]
[329505382,1718405444616,-462.74530417,0.00016438,2]
[329505383,1718405444651,-37.25469583,0.00016438,2]
[329505384,1718405444694,-382.99,0.00016438,2]
[329505385,1718405444748,-500.0,0.00016438,2]
[329505386,1718405444797,-500.0,0.00016438,2]
[329505387,1718405444824,-500.0,0.00016438,2]
[329505388,1718405444852,-500.0,0.00016438,2]
[329505389,1718405444936,-500.0,0.00016438,2]
[329505390,1718405444952,-500.0,0.00016438,2]
[329505391,1718405444976,-500.0,0.00016438,2]
[329505392,1718405444987,-500.0,0.00016438,2]
[329505393,1718405445009,-500.0,0.00016438,2]
[329505394,1718405445049,-98.52510622,0.00016438,2]
[329505395,1718405445224,-356.93879695,0.00016438,2]
[329505435,1718405460071,-44.53609683,0.00016438,2]
[329505436,1718405460128,-4102.08784853,0.00016438,2]
[329505437,1718405460176,-1057.98215147,0.00016438,2]
[329505438,1718405460207,-36.20598462,0.00016438,2]
[329505439,1718405460229,-559.81401538,0.00016438,2]
[329505440,1718405460240,-500.0,0.00016438,2]
[329505441,1718405460253,-1101.26,0.00016438,2]
[329505442,1718405460263,-500.0,0.00016438,2]
[329505443,1718405460277,-1384.15,0.00016438,2]
[329505444,1718405460297,-500.0,0.00016438,2]
[329505445,1718405460317,-500.0,0.00016438,2]
[329505446,1718405460332,-500.0,0.00016438,2]
[329505447,1718405460349,-1022.11,0.00016438,2]
[329505448,1718405460373,-500.0,0.00016438,2]
[329505449,1718405460386,-500.0,0.00016438,2]
[329505450,1718405460408,-500.0,0.00016438,2]
[329505451,1718405460422,-500.0,0.00016438,2]
[329505452,1718405460453,-2661.66,0.00016438,2]
[329505453,1718405460465,-500.0,0.00016438,2]
[329505454,1718405460480,-611.1136572,0.00016438,2]
[329505455,1718405460512,-500.0,0.00016438,2]
[329505456,1718405460526,-500.0,0.00016438,2]
[329505457,1718405460537,-3245.77,0.00016438,2]
[329505458,1718405460553,-500.0,0.00016438,2]
[329505459,1718405460563,-500.0,0.00016438,2]
[329505460,1718405460575,-500.0,0.00016438,2]
[329505461,1718405460595,-925.41,0.00016438,2]
[329505462,1718405460608,-500.0,0.00016438,2]
[329505463,1718405460648,-500.0,0.00016711,2]
[329505464,1718405460664,-1241.87,0.00016711,2]
[329505465,1718405460677,-1037.59,0.00016711,2]
[329505466,1718405460688,-500.0,0.00016711,2]
[329505467,1718405460707,-500.0,0.00016711,2]
[329505468,1718405460719,-415.75723587,0.00016711,2]
[329505469,1718405460731,-963.4,0.00016711,2]
[329505470,1718405460741,-2327.11,0.00016711,2]
[329505471,1718405460752,-200.21540642,0.00016711,2]
[329505472,1718405460771,-5947.58,0.00016711,2]
[329505473,1718405460820,-500.0,0.00016712,2]
[329505474,1718405460872,-500.0,0.00016712,2]
[329505475,1718405460886,-500.0,0.00016712,2]
[329505476,1718405460924,-500.0,0.00016712,2]
[329505477,1718405460934,-524.64,0.00016712,2]
[329505478,1718405460945,-500.0,0.00016712,2]
[329505479,1718405460955,-500.0,0.00016712,2]
[329505480,1718405460965,-500.0,0.00016712,2]
[329505481,1718405460986,-500.0,0.00016712,2]
[329505482,1718405461005,-500.0,0.00016712,2]
[329505483,1718405461021,-500.0,0.00016712,2]
[329505484,1718405461032,-5160.07,0.00016712,2]
[329505485,1718405461055,-596.02,0.00016712,2]
[329505486,1718405461087,-1101.26,0.00016712,2]
[329505487,1718405461102,-500.0,0.00016712,2]
[329505488,1718405461115,-1384.15,0.00016712,2]
[329505489,1718405461127,-500.0,0.00016712,2]
[329505490,1718405461169,-500.0,0.00016712,2]
[329505491,1718405461208,-1022.11,0.00016712,2]
[329505492,1718405461220,-500.0,0.00016712,2]
[329505493,1718405461234,-500.0,0.00016712,2]
[329505494,1718405461246,-500.0,0.00016712,2]
[329505495,1718405461265,-500.0,0.00016712,2]
[329505496,1718405461276,-1299.40781943,0.00016712,2]
[329505497,1718405469515,10000.0,0.00023,30]
[329505498,1718405497962,7255.06,0.00023,30]
[329505731,1718406649361,-165.317226,0.00016164,2]
[329505733,1718406649397,-300.0,0.00016437,2]
[329505735,1718406649420,-142.77826211,0.00016438,2]
[329505737,1718406649455,-357.22173789,0.00016438,2]
[329505738,1718406649496,-500.0,0.00016438,2]
[329505741,1718406649513,-500.0,0.00016438,2]
[329505743,1718406649589,-500.0,0.00016438,2]
[329505745,1718406649612,-500.0,0.00016438,2]
[329505747,1718406649634,-500.0,0.00016438,2]
[329505749,1718406649647,-500.0,0.00016438,2]
[329505751,1718406649672,-500.0,0.00016438,2]
[329505754,1718406649692,-5841.42,0.00016438,2]
[329505756,1718406649704,-3684.04,0.00016438,2]
[329505759,1718406649745,-500.0,0.0001671,2]
[329505761,1718406649763,-500.0,0.0001671,2]
[329505763,1718406649796,-500.0,0.0001671,2]
[329505765,1718406649818,-500.0,0.0001671,2]
[329505767,1718406649834,-500.0,0.0001671,2]
[329505769,1718406649855,-500.0,0.0001671,2]
[329505770,1718406649867,-592.95,0.0001671,2]
[329505773,1718406649892,-500.0,0.0001671,2]
[329505775,1718406649916,-3231.25,0.0001671,2]
[329505777,1718406649931,-558.44,0.0001671,2]
[329505778,1718406649947,-500.0,0.0001671,2]
[329505780,1718406649961,-444.79084427,0.0001671,2]
[329505804,1718406650425,-55.20915573,0.0001671,2]
[329505806,1718406650440,-500.0,0.00016711,2]
[329505808,1718406650484,-500.0,0.00016711,2]
[329505810,1718406650507,-500.0,0.00016711,2]
[329505812,1718406650537,-312.34879831,0.00016711,2]
[329505862,1718406651493,-187.65120169,0.00016711,2]
[329505864,1718406651509,-500.0,0.00016711,2]
[329505866,1718406651524,-424.56489109,0.00016711,2]
[329505869,1718406651572,-500.0,0.00016711,2]
[329505872,1718406651585,-916.39,0.00016711,2]
[329505874,1718406651600,-500.0,0.00016711,2]
[329505878,1718406651613,-1398.22579925,0.00016711,2]
[329505882,1718406651635,-1671.33730823,0.00016711,2]
[329506355,1718407836118,-807.09127096,0.0001661,2]
[329506357,1718407836146,-300.0,0.00016708,2]
[329506362,1718407836252,-363.8231379,0.00016709,2]
[329506364,1718407836269,-500.0,0.00016709,2]
[329506367,1718407836285,-361.74842265,0.00016709,2]
[329506372,1718407836372,-507.69431826,0.00016709,2]
[329506373,1718407836393,-500.0,0.00016709,2]
[329506376,1718407836472,-500.0,0.00016709,2]
[329506377,1718407836488,-500.0,0.00016709,2]
[329506378,1718407836514,-500.0,0.00016709,2]
[329506379,1718407836540,-500.0,0.00016709,2]
[329506380,1718407836572,-500.0,0.00016709,2]
[329506381,1718407836591,-500.0,0.00016709,2]
[329506382,1718407836612,-500.0,0.00016709,2]
[329506383,1718407836676,-500.0,0.00016709,2]
[329506384,1718407836690,-500.0,0.00016709,2]
[329506386,1718407836754,-500.0,0.00016709,2]
[329506389,1718407836782,-500.0,0.00016709,2]
[329506391,1718407836822,-500.0,0.00016709,2]
[329506393,1718407836852,-500.0,0.00016709,2]
[329506395,1718407836872,-500.0,0.00016709,2]
[329506396,1718407836913,-500.0,0.00016709,2]
[329506398,1718407836948,-500.0,0.00016709,2]
[329506400,1718407836963,-500.0,0.00016709,2]
[329506402,1718407837000,-500.0,0.00016709,2]
[329506403,1718407837012,-500.0,0.00016709,2]
[329506404,1718407837043,-500.0,0.00016709,2]
[329506406,1718407837082,-3805.86,0.00016709,2]
[329506408,1718407837100,-500.0,0.00016709,2]
[329506410,1718407837140,-1072.05,0.00016709,2]
[329506413,1718407837154,-500.0,0.00016709,2]
[329506414,1718407837183,-1406.66,0.00016709,2]
[329506417,1718407837226,-500.0,0.00016709,2]
[329506419,1718407837255,-500.0,0.00016709,2]
[329506421,1718407837271,-500.0,0.00016709,2]
[329506423,1718407837285,-500.0,0.00016709,2]
[329506427,1718407837332,-570.12,0.00016709,2]
[329506428,1718407837354,-500.0,0.00016709,2]
[329506430,1718407837409,-500.0,0.00016709,2]
[329506431,1718407837436,-956.73,0.00016709,2]
[329506433,1718407837447,-500.0,0.00016709,2]
[329506435,1718407837462,-500.0,0.00016709,2]
[329506437,1718407837475,-878.2,0.00016709,2]
[329506438,1718407837489,-500.0,0.00016709,2]
[329506440,1718407837500,-3096.62,0.00016709,2]
[329506442,1718407837514,-5646.97930066,0.0001671,13]
[329506610,1718407846128,-436.84778693,0.00016709,2]
[329506613,1718407846168,-975.82025684,0.0001671,13]
[329506614,1718407846186,-3070.41932749,0.0001671,13]
[329506737,1718407849157,-117.81526502,0.0001671,13]
[329506739,1718407849169,-500.0,0.0001671,2]
[329506742,1718407849194,-12.10017474,0.0001671,2]
[329507004,1718408879728,619.0,0.00013,6]
[329510509,1718409140362,775.12551274,9.999e-05,2]
[329513069,1718410011929,10000.0,0.00025,60]
[329513070,1718410020438,10000.0,0.00025,60]
[329513071,1718410036728,1514.40164382,0.00025,60]
[329513074,1718410151745,3636.72730908,0.00025,60]
[329513138,1718410237923,-1426.1325397,0.00015586,2]
[329513141,1718410237993,-166.6666668,0.00016164,2]
[329513143,1718410238068,-2311.12266616,0.00016507,2]
[329513146,1718410238088,-2311.12266613,0.00016605,2]
[329513148,1718410238165,-300.0,0.00016605,2]
[329513149,1718410238181,-155.88533814,0.00016606,2]
[329513152,1718410238288,-155.08333146,0.00016606,2]
[329513154,1718410238322,-3449.5,0.00016606,2]
[329513158,1718410238461,-500.0,0.00016606,2]
[329513161,1718410238513,-4905.51707501,0.00016607,13]
[329513165,1718410238565,-500.0,0.00016607,2]
[329513167,1718410238588,-559.53090958,0.00016607,2]
[329513169,1718410238602,-500.0,0.00016607,2]
[329513171,1718410238615,-500.0,0.00016607,2]
[329513173,1718410238648,-500.0,0.00016607,2]
[329513175,1718410238674,-500.0,0.00016607,2]
[329513177,1718410238713,-500.0,0.00016607,2]
[329513181,1718410238802,-500.0,0.00016607,2]
[329513182,1718410238827,-500.0,0.00016607,2]
[329513184,1718410238852,-500.0,0.00016607,2]
[329513186,1718410238883,-500.0,0.00016607,2]
[329513188,1718410238909,-500.0,0.00016607,2]
[329513190,1718410238968,-500.0,0.00016607,2]
[329513192,1718410238983,-500.0,0.00016607,2]
[329513194,1718410238996,-500.0,0.00016607,2]
[329513196,1718410239056,-500.0,0.00016607,2]
[329513199,1718410239116,-500.0,0.00016607,2]
[329513200,1718410239160,-500.0,0.00016607,2]
[329513201,1718410239176,-500.0,0.00016607,2]
[329513203,1718410239193,-500.0,0.00016607,2]
[329513208,1718410239328,-554.41,0.00016607,2]
[329513210,1718410239351,-500.0,0.00016607,2]
[329513212,1718410239365,-500.0,0.00016607,2]
[329513214,1718410239389,-500.0,0.00016607,2]
[329513217,1718410239435,-500.0,0.00016607,2]
[329513219,1718410239446,-500.0,0.00016607,2]
[329513220,1718410239457,-500.0,0.00016607,2]
[329513223,1718410239491,-320.02950395,0.00016607,2]
[329513224,1718410239523,-500.0,0.00016607,2]
[329513226,1718410239565,-500.0,0.00016607,2]
[329513228,1718410239578,-500.0,0.00016607,2]
[329513230,1718410239592,-500.0,0.00016607,2]
[329513232,1718410239612,-500.0,0.00016607,2]
[329513235,1718410239668,-500.0,0.00016607,2]
[329513237,1718410239697,-500.0,0.00016607,2]
[329513238,1718410239710,-501.52842729,0.00016607,2]
[329513241,1718410239753,-449.21138193,0.00016607,2]
[329513337,1718410243189,-50.78861807,0.00016607,2]
[329513339,1718410243201,-500.28117855,0.00016607,2]
[329513340,1718410243212,-500.0,0.00016607,2]
[329513342,1718410243233,-500.0,0.00016607,2]
[329513345,1718410243259,-500.0,0.00016607,2]
[329513347,1718410243272,-1028.84,0.00016607,2]
[329513349,1718410243286,-500.0,0.00016607,2]
[329513350,1718410243298,-500.0,0.00016607,2]
[329513352,1718410243308,-500.0,0.00016607,2]
[329513355,1718410243327,-1377.39,0.00016607,2]
[329513358,1718410243360,-500.0,0.00016607,2]
[329513359,1718410243371,-500.0,0.00016607,2]
[329513363,1718410243444,-500.0,0.00016607,2]
[329513365,1718410243482,-1129.18,0.00016607,2]
[329513367,1718410243494,-500.0,0.00016607,2]
[329513369,1718410243506,-151.0,0.00016607,2]
[329513371,1718410243524,-151.0,0.00016607,2]
[329513373,1718410243551,-151.0,0.00016607,2]
[329513375,1718410243563,-163.389518,0.00016607,2]
[329513377,1718410243578,-500.0,0.00016607,2]
[329513380,1718410243591,-500.0,0.00016607,2]
[329513382,1718410243603,-500.0,0.00016607,2]
[329513383,1718410243632,-1078.89,0.00016607,2]
[329513385,1718410243676,-500.0,0.00016607,2]
[329513387,1718410243724,-500.0,0.00016607,2]
[329513389,1718410243753,-724.1,0.00016607,2]
[329513392,1718410243792,-2573.24,0.00016607,2]
[329513395,1718410243832,-500.0,0.00016607,2]
[329513397,1718410243866,-151.0,0.00016607,2]
[329513399,1718410243903,-151.0,0.00016607,2]
[329513401,1718410243928,-151.0,0.00016607,2]
[329513404,1718410243990,-151.0,0.00016607,2]
[329513406,1718410244002,-151.0,0.00016607,2]
[329513409,1718410244030,-152.472504,0.00016607,2]
[329513411,1718410244047,-1068.38,0.00016607,2]
[329513412,1718410244098,-900.36,0.00016607,2]
[329513414,1718410244146,-151.0,0.00016607,2]
[329513416,1718410244177,-151.0,0.00016607,2]
[329513418,1718410244189,-151.0,0.00016607,2]
[329513420,1718410244201,-500.0,0.00016607,2]
[329513422,1718410244218,-221.216068,0.00016607,2]
[329513423,1718410244258,-500.0,0.00016607,2]
[329513425,1718410244271,-394.37211327,0.00016607,2]
[329513426,1718410244297,-105.62788673,0.00016607,2]
[329513428,1718410244328,-500.0,0.00016607,2]
[329513429,1718410244340,-575.76,0.00016607,2]
[329513431,1718410244373,-500.0,0.00016607,2]
[329513433,1718410244390,-4239.79,0.00016607,2]
[329513435,1718410244420,-500.0,0.00016607,2]
[329513437,1718410244449,-500.0,0.00016607,2]
[329513444,1718410244463,-151.0,0.00016607,2]
[329513447,1718410244684,-500.0,0.00016607,2]
[329513449,1718410244702,-4733.76,0.00016607,2]
[329513450,1718410244724,-496.35548321,0.00016607,2]
[329513452,1718410244736,-151.0,0.00016607,2]
[329513454,1718410244747,-151.0,0.00016607,2]
[329513456,1718410244765,-151.0,0.00016607,2]
[329513458,1718410244779,-151.0,0.00016607,2]
[329513459,1718410244840,-151.0,0.00016607,2]
[329513462,1718410244872,-163.094864,0.00016607,2]
[329513464,1718410244892,-500.0,0.00016607,2]
[329513466,1718410244908,-500.0,0.00016607,2]
[329513467,1718410244926,-29113.93868417,0.00016608,2]
[329513470,1718410244944,-499.77566816,0.00016608,2]
[329513472,1718410244960,-5428.0995591,0.00016608,2]
[329513475,1718410244978,-1161.04534573,0.00016608,2]
[329513477,1718410245003,-2532.26774001,0.00016608,2]
[329513479,1718410245017,-153.0,0.000167,2]
[329513481,1718410245035,-205.438059,0.000167,2]
[329513482,1718410245048,-153.0,0.000167,2]
[329513484,1718410245063,-44.90436868,0.00016703,2]
[329513486,1718410245098,-2266.21829745,0.00016703,2]
[329513488,1718410245122,-196.74458259,0.00016706,2]
[329513489,1718410245142,-187.33268178,0.00016706,2]
[329513491,1718410245193,-156.8401175,0.00016706,2]
[329513493,1718410245207,-1444.57547444,0.00016706,2]
[329513495,1718410245262,-926.99388113,0.00016706,2]
[329513498,1718410245287,-281.49904927,0.00016706,2]
[329513500,1718410245309,-155.09577723,0.00016706,2]
[329513501,1718410245340,-7198.40573936,0.00016706,2]
[329513503,1718410245362,-272.38168854,0.00016706,2]
[329513505,1718410245391,-1983.20300641,0.00016706,2]
[329513508,1718410245413,-772.03540257,0.00016706,2]
[329513510,1718410245426,-500.0,0.00016706,2]
[329513512,1718410245452,-9042.83890469,0.00016707,2]
[329513514,1718410245478,-544.31656364,0.00016707,2]
[329513516,1718410245490,-500.0,0.00016707,2]
[329513518,1718410245501,-500.0,0.00016707,2]
[329513519,1718410245519,-500.0,0.00016708,2]
[329513521,1718410245529,-500.0,0.00016708,2]
[329513523,1718410245557,-645.71883214,0.00016708,2]
[329513524,1718410245588,-500.0,0.00016708,2]
[329513526,1718410245603,-500.0,0.00016708,2]
[329513528,1718410245648,-284.87089557,0.00016708,2]
[329513531,1718410245686,-500.0,0.00016708,2]
[329513533,1718410245699,-553.65688451,0.00016708,2]
[329513535,1718410245713,-500.0,0.00016708,2]
[329513537,1718410245745,-400.27161015,0.00016708,2]
[329513538,1718410245773,-500.0,0.00016708,2]
[329513540,1718410245794,-500.0,0.00016708,2]
[329513543,1718410245820,-236.09605711,0.00016708,2]
[329513545,1718410245834,-500.0,0.00016708,2]
[329513546,1718410245850,-500.0,0.00016708,2]
[329513548,1718410245887,-500.0,0.00016708,2]
[329513551,1718410245955,-500.0,0.00016708,2]
[329513552,1718410246005,-500.0,0.00016708,2]
[329513555,1718410246081,-500.0,0.00016708,2]
[329513556,1718410246139,-500.0,0.00016708,2]
[329513559,1718410246161,-500.0,0.00016708,2]
[329513560,1718410246180,-500.0,0.00016708,2]
[329513562,1718410246195,-500.0,0.00016708,2]
[329513564,1718410246206,-276.23015115,0.00016708,2]
[329513565,1718410246248,-500.0,0.00016708,2]
[329513569,1718410246303,-630.09128489,0.00016708,2]
[329513571,1718410246329,-500.0,0.00016708,2]
[329513573,1718410246348,-392.53894664,0.00016708,2]
[329513575,1718410246374,-500.0,0.00016708,2]
[329513577,1718410246393,-645.75503108,0.00016708,2]
[329513578,1718410246412,-500.0,0.00016708,2]
[329513580,1718410246425,-500.0,0.00016708,2]
[329513582,1718410246437,-500.0,0.00016708,2]
[329513584,1718410246453,-2888.34,0.00016708,2]
[329513586,1718410246485,-500.0,0.00016708,2]
[329513587,1718410246496,-500.0,0.00016708,2]
[329513589,1718410246507,-2311.12266613,0.000168,2]
[329513591,1718410246522,-3449.5,0.0001688,2]
[329513592,1718410246533,-500.0,0.0001688,2]
[329513594,1718410246553,-500.0,0.00016881,2]
[329513596,1718410246570,-500.0,0.00016881,2]
[329513597,1718410246588,-500.0,0.00016881,2]
[329513599,1718410246610,-500.0,0.00016881,2]
[329513601,1718410246632,-233.99007782,0.00016881,2]
[329513602,1718410246657,-500.0,0.00016881,2]
[329513604,1718410246673,-508.33945223,0.00016881,2]
[329513605,1718410246695,-500.0,0.00016881,2]
[329513607,1718410246724,-500.0,0.00016881,2]
[329513608,1718410246749,-247.73006924,0.00016881,2]
[329513610,1718410246810,-554.41,0.00016881,2]
[329513611,1718410246824,-500.0,0.00016881,2]
[329513613,1718410246838,-500.0,0.00016881,2]
[329513615,1718410246856,-500.0,0.00016881,2]
[329513617,1718410246893,-500.0,0.00016881,2]
[329513619,1718410246919,-500.0,0.00016881,2]
[329513621,1718410246934,-500.0,0.00016881,2]
[329513622,1718410246960,-500.0,0.00016881,2]
[329513624,1718410246974,-500.0,0.00016881,2]
[329513625,1718410246995,-500.0,0.00016881,2]
[329513627,1718410247015,-500.0,0.00016881,2]
[329513629,1718410247036,-1028.84,0.00016881,2]
[329513630,1718410247053,-500.0,0.00016881,2]
[329513633,1718410247080,-500.0,0.00016881,2]
[329513635,1718410247094,-1377.39,0.00016881,2]
[329513637,1718410247112,-500.0,0.00016881,2]
[329513639,1718410247131,-500.0,0.00016881,2]
[329513641,1718410247151,-1129.18,0.00016881,2]
[329513643,1718410247163,-271.84423605,0.00016881,2]
[329513644,1718410247185,-1078.89,0.00016881,2]
[329513647,1718410247220,-500.0,0.00016881,2]
[329513648,1718410247232,-500.0,0.00016881,2]
[329513651,1718410247296,-500.0,0.00016881,2]
[329513653,1718410247332,-724.1,0.00016881,2]
[329513655,1718410247383,-2573.24,0.00016881,2]
[329513658,1718410247428,-500.0,0.00016881,2]
[329513660,1718410247440,-1068.38,0.00016881,2]
[329513661,1718410247476,-900.36,0.00016881,2]
[329513663,1718410247492,-500.0,0.00016881,2]
[329513665,1718410247510,-500.0,0.00016881,2]
[329513667,1718410247520,-575.76,0.00016881,2]
[329513669,1718410247536,-500.0,0.00016881,2]
[329513671,1718410247548,-2139.84759176,0.00016881,2]
[329513727,1718410250148,-1239.27100746,0.00016881,2]
[329513730,1718410250248,-860.67140078,0.00016881,2]
[329513731,1718410250286,-500.0,0.00016881,2]
[329513732,1718410250324,-500.0,0.00016881,2]
[329513733,1718410250349,-309.92,0.00016881,2]
[329513734,1718410250361,-4733.76,0.00016881,2]
[329513736,1718410250379,-500.0,0.00016881,2]
[329513738,1718410250396,-1214.69558483,0.00016898,2]
[329513739,1718410250432,-527.71119533,0.00016898,2]
[329513789,1718410252662,-360.94971958,0.00016606,2]
[329513793,1718410252680,-139.05028042,0.00016606,2]
[329513797,1718410252695,-500.0,0.00016607,2]
[329513802,1718410252706,-500.0,0.0001688,2]
[329513806,1718410252717,-500.0,0.00016881,2]
[329513810,1718410252734,-261.96370582,0.00016898,2]
[329513815,1718410252756,-302.8671087,0.00016898,2]
[329513820,1718410252777,-3.88507145,0.00016898,2]
[329513822,1718410252801,-500.0,0.0001698,2]
[329513827,1718410252834,-500.0,0.00016982,2]
[329513830,1718410252848,-500.0,0.00016982,2]
[329513833,1718410252863,-500.0,0.00016982,2]
[329513836,1718410252878,-500.0,0.00016982,2]
[329513839,1718410252892,-500.0,0.00016982,2]
[329513842,1718410252907,-500.0,0.00016982,2]
[329513843,1718410252942,-500.0,0.00016982,2]
[329513846,1718410252956,-500.0,0.00016982,2]
[329513849,1718410252969,-2888.34,0.00016982,2]
[329513852,1718410252980,-500.0,0.00016982,2]
[329513855,1718410253024,-38528.21131464,0.00016998,15]
[329513856,1718410253035,-1426.9728866,0.00016998,2]
[329513857,1718410253046,-393.4653901,0.00016998,2]
[329513860,1718410253058,-153.0,0.00017,2]
[329513862,1718410253105,-306.0,0.00017,2]
[329513864,1718410253117,-500.0,0.00017018,2]
[329513865,1718410253132,-500.0,0.00017099,2]
[329513866,1718410253154,-800.0,0.000171,2]
[329513867,1718410253189,-488.05297515,0.00017104,2]
[329513868,1718410253223,-669.26884059,0.00017104,2]
[329513869,1718410253255,-2315.38785142,0.00017154,2]
[329513870,1718410253281,-1134.11214858,0.00017154,2]
[329513871,1718410253316,-500.0,0.00017154,2]
[329513872,1718410253328,-500.0,0.00017154,2]
[329513873,1718410253347,-500.0,0.00017155,2]
[329513874,1718410253376,-500.0,0.00017155,2]
[329513875,1718410253401,-500.0,0.00017155,2]
[329513877,1718410253418,-500.0,0.00017155,2]
[329513879,1718410253437,-292.98375161,0.00017155,2]
[329513880,1718410253495,-554.41,0.00017155,2]
[329513882,1718410253508,-500.0,0.00017155,2]
[329513884,1718410253536,-500.0,0.00017155,2]
[329513885,1718410253547,-500.0,0.00017155,2]
[329513887,1718410253570,-500.0,0.00017155,2]
[329513889,1718410253582,-500.0,0.00017155,2]
[329513891,1718410253594,-1028.84,0.00017155,2]
[329513892,1718410253608,-500.0,0.00017155,2]
[329513893,1718410253620,-500.0,0.00017155,2]
[329513895,1718410253635,-1377.39,0.00017155,2]
[329513897,1718410253658,-500.0,0.00017155,2]
[329513898,1718410253671,-500.0,0.00017155,2]
[329513900,1718410253695,-1129.18,0.00017155,2]
[329513902,1718410253707,-500.0,0.00017155,2]
[329513903,1718410253718,-1078.89,0.00017155,2]
[329513906,1718410253744,-500.0,0.00017155,2]
[329513907,1718410253762,-500.0,0.00017155,2]
[329513909,1718410253780,-2573.24,0.00017155,2]
[329513911,1718410253794,-500.0,0.00017155,2]
[329513913,1718410253812,-1068.38,0.00017155,2]
[329513915,1718410253825,-900.36,0.00017155,2]
[329513917,1718410253851,-504.29,0.00017155,2]
[329513918,1718410253861,-500.0,0.00017155,2]
[329513921,1718410253873,-575.76,0.00017155,2]
[329513923,1718410253898,-500.0,0.00017155,2]
[329513925,1718410253951,-4239.79,0.00017155,2]
[329513926,1718410253982,-500.0,0.00017155,2]
[329513927,1718410254017,-4733.76,0.00017155,2]
[329513929,1718410254050,-500.0,0.00017155,2]
[329513931,1718410254082,-500.0,0.00017155,2]
[329513932,1718410254106,-500.0,0.00017254,2]
[329513934,1718410254121,-500.0,0.00017255,2]
[329513936,1718410254158,-500.0,0.00017256,2]
[329513938,1718410254169,-500.0,0.00017256,2]
[329513940,1718410254182,-522.6128348,0.00017256,2]
[329513942,1718410254193,-500.0,0.00017256,2]
[329513944,1718410254207,-500.0,0.00017256,2]
[329513946,1718410254220,-500.0,0.00017256,2]
[329513948,1718410254232,-2888.34,0.00017256,2]
[329513950,1718410254244,-500.0,0.00017256,2]
[329513951,1718410254280,-500.0,0.00017256,2]
[329513954,1718410254352,-164.68563506,0.00017257,2]
[329513955,1718410254374,-217.61078541,0.00017428,2]
[329516807,1718410550057,10000.0,0.0002475,120]
[329516808,1718410562540,10000.0,0.0002475,120]
[329516809,1718410578620,10000.0,0.0002475,120]
[329516810,1718410652116,1212.25455913,0.00025,60]
[329517011,1718411441943,-300.0,0.00015694,2]
[329517013,1718411441956,-14204.622296,0.00015695,2]
[329517014,1718411441994,-500.0,0.00016606,2]
[329517016,1718411442010,-500.0,0.00016606,2]